bitfinex-derivatives/quotes_BTCF0:USTF0_20251230
["timestamp","ask_amount","ask_price","bid_price","bid_amount"]
[1767108233139,0.0113239,88405.0,88384.0,0.0113263]
[1767108233730,0.05716,88406.0,88387.0,0.011326]
[1767108234038,0.0113238,88405.0,88384.0,0.0113264]
[1767108235636,0.05716,88406.0,88378.0,0.00016967]
[1767108235848,0.0113249,88396.0,88378.0,0.00016967]
[1767108236031,0.0113252,88394.0,88378.0,0.00016967]
[1767108236542,0.0113262,88386.0,88362.0,0.0113291]
[1767108236736,0.0113246,88399.0,88360.0,0.0113294]
[1767108236737,0.0113268,88382.0,88360.0,0.0113294]
[1767108236933,0.15344,88381.0,88360.0,0.0113294]
[1767108237334,0.0113269,88380.0,88357.0,0.0113299]
[1767108237538,0.00016967,88377.0,88360.0,0.00016967]
[1767108239343,0.00016967,88377.0,88361.0,0.0113293]
[1767108239733,0.00016967,88377.0,88364.0,0.011329]
[1767108240233,7e-08,88377.0,88360.0,0.00016967]
[1767108240545,7e-08,88377.0,88376.0,0.0113275]
[1767108240735,0.05716,88398.0,88370.0,0.05716]
[1767108240941,0.09628,88412.0,88391.0,0.0113255]
[1767108241140,0.09628,88414.0,88400.0,0.0113244]
[1767108241443,0.09628,88428.0,88401.0,0.09628]
[1767108241642,0.15344,88431.0,88406.0,0.0113235]
[1767108241845,0.00016967,88421.0,88406.0,0.0113235]
[1767108242137,0.00016967,88421.0,88414.0,0.0113225]
[1767108242138,7e-08,88421.0,88414.0,0.0113225]
[1767108242544,0.09628,88431.0,88409.0,0.05716]
[1767108242837,0.09628,88455.0,88426.0,0.011321]
[1767108243146,0.09628,88455.0,88433.0,0.0113201]
[1767108243333,0.09628,88455.0,88432.0,0.09628]
[1767108243533,0.011318,88450.0,88435.0,0.00016967]
[1767108243840,0.00016967,88452.0,88435.0,0.00016967]
[1767108245534,0.05712,88457.0,88435.0,0.00016967]
[1767108245535,0.09624,88464.0,88435.0,0.00016967]
[1767108245739,0.09624,88471.0,88444.0,0.0113187]
[1767108245931,0.09624,88471.0,88445.0,0.09624]
[1767108246337,0.0113154,88470.0,88445.0,0.09624]
[1767108246537,0.0112654,88470.0,88445.0,0.09624]
[1767108246842,0.01148548,88466.0,88445.0,0.09624]
[1767108247043,0.01148548,88466.0,88437.0,0.0113195]
[1767108247240,0.01148548,88466.0,88438.0,0.15336]
[1767108247439,0.00016958,88466.0,88440.0,0.0113192]
[1767108247745,0.00016958,88466.0,88438.0,0.15336]
[1767108248040,0.00016958,88466.0,88440.0,0.0113192]
[1767108248443,0.00016958,88466.0,88438.0,0.15336]
[1767108248444,8e-08,88466.0,88438.0,0.15336]
[1767108248645,8e-08,88466.0,88462.0,0.0113164]
[1767108248831,0.0113114,88502.0,88470.0,0.0113154]
[1767108249030,0.09624,88506.0,88471.0,0.09624]
[1767108249031,0.05148,88504.0,88471.0,0.09624]
[1767108249338,0.05148,88504.0,88480.0,0.0113141]
[1767108249644,0.05148,88504.0,88481.0,0.15336]
[1767108249947,0.00011283,88501.0,88484.0,0.00016958]
[1767108250545,0.00011283,88501.0,88436.0,0.0565986]
[1767108250732,0.0113123,88495.0,88462.0,0.0113164]
[1767108251041,0.0113123,88495.0,88464.0,0.0113162]
[1767108251340,0.0113127,88491.0,88465.0,0.15336]
[1767108251844,0.00016958,88487.0,88469.0,0.00016958]
[1767108252340,0.05148,88504.0,88478.0,0.0113143]
[1767108252341,0.0962,88503.0,88478.0,0.0113143]
[1767108252545,0.0962,88503.0,88479.0,0.0962]
[1767108252844,0.0113114,88502.0,88479.0,0.0962]
[1767108253238,0.0962,88503.0,88479.0,0.0962]
[1767108253439,0.00011283,88499.0,88479.0,0.0962]
[1767108253944,0.00011283,88499.0,88469.0,0.00016958]
[1767108253945,0.011312,88497.0,88469.0,0.00016958]
[1767108254148,0.0113125,88493.0,88470.0,0.15332]
[1767108254742,0.011312,88498.0,88470.0,0.15332]
[1767108255341,0.00011283,88499.0,88470.0,0.15332]
[1767108255843,0.00011283,88499.0,88469.0,0.00016958]
[1767108255844,0.01142453,88499.0,88471.0,0.15328]
[1767108256250,0.0113122,88496.0,88471.0,0.15328]
[1767108256841,0.0113125,88493.0,88471.0,0.15328]
[1767108257050,0.0113125,88493.0,88469.0,0.00016958]
[1767108257051,0.0113125,88493.0,88470.0,0.05708]
[1767108257345,0.0113133,88487.0,88470.0,0.15328]
[1767108257552,0.00011283,88499.0,88465.0,0.15328]
[1767108257553,0.0113137,88484.0,88465.0,0.15328]
[1767108257842,0.0962,88493.0,88449.0,0.11301733]
[1767108258042,0.05708,88491.0,88450.0,0.15328]
[1767108258441,0.0113113,88503.0,88462.0,0.0113163]
[1767108258646,0.0113106,88509.0,88474.0,0.00016958]
[1767108258647,0.00016958,88491.0,88474.0,0.00016958]
[1767108258945,0.0962,88490.0,88464.0,0.0962]
[1767108259346,0.0113136,88485.0,88464.0,0.0962]
[1767108259940,0.0113136,88485.0,88466.0,0.00016958]
[1767108260142,0.0962,88490.0,88466.0,0.00016958]
[1767108260450,0.0113145,88477.0,88458.0,0.15328]
[1767108260645,0.0962,88479.0,88448.0,0.05708]
[1767108260847,0.0962,88479.0,88434.0,0.30352587]
[1767108260848,0.0962,88479.0,88399.0,0.0807929]
[1767108261044,0.0113145,88477.0,88438.0,0.0113194]
[1767108261247,0.0113164,88463.0,88449.0,0.00016958]
[1767108261449,0.0113164,88463.0,88429.0,0.05708]
[1767108261450,0.0113168,88460.0,88447.0,0.00016958]
[1767108261649,0.0962,88464.0,88434.0,0.0962]
[1767108261850,0.0962,88464.0,88445.0,0.0113185]
[1767108262045,0.0962,88464.0,88444.0,0.0113187]
[1767108262352,0.0962,88464.0,88446.0,0.0113184]
[1767108262652,0.0962,88464.0,88446.0,0.00016958]
[1767108263544,0.1075162,88464.0,88446.0,0.00016958]
[1767108263738,0.05708,88463.0,88446.0,0.00016958]
[1767108264754,0.05708,88464.0,88446.0,0.00016958]
[1767108264946,0.0962,88463.0,88446.0,0.00016958]
[1767108265454,0.0113168,88459.0,88434.0,0.0962]
[1767108265644,0.0962,88463.0,88434.0,0.0962]
[1767108266153,0.0962,88463.0,88440.0,0.0113193]
[1767108266349,0.0962,88463.0,88443.0,0.00016958]
[1767108267454,0.0113165,88462.0,88443.0,0.00016958]
[1767108268150,0.0113173,88456.0,88443.0,0.00016958]
[1767108268352,0.0113173,88456.0,88435.0,0.0962]
[1767108268748,0.0113173,88456.0,88436.0,0.01129]
[1767108268944,0.0962,88463.0,88436.0,0.01129]
[1767108269248,0.0962,88463.0,88431.0,0.0113204]
[1767108269438,0.0113173,88455.0,88432.0,0.0113202]
[1767108269638,0.0113177,88453.0,88432.0,0.0113202]
[1767108269837,0.0962,88452.0,88432.0,0.0113203]
[1767108270049,0.0962,88452.0,88426.0,0.0962]
[1767108270238,0.0113184,88447.0,88426.0,0.0962]
[1767108270442,0.00016958,88445.0,88426.0,0.0962]
[1767108270645,0.05724958,88445.0,88423.0,0.05708]
[1767108270850,0.05724958,88445.0,88419.0,0.0962]
[1767108271047,0.06856828,88445.0,88421.0,0.0113216]
[1767108271238,0.05724958,88445.0,88423.0,0.0113214]
[1767108271638,0.05724958,88445.0,88418.0,0.0962]
[1767108271844,0.0113194,88439.0,88418.0,0.0962]
[1767108272044,0.0113197,88437.0,88418.0,0.0962]
[1767108272458,0.0113202,88433.0,88418.0,0.0962]
[1767108272651,0.05708,88434.0,88413.0,0.0113227]
[1767108272852,0.0684001,88434.0,88410.0,0.0962]
[1767108273252,0.05708,88434.0,88411.0,0.0113229]
[1767108273845,0.05708,88434.0,88410.0,0.0962]
[1767108273846,0.0113203,88433.0,88410.0,0.0962]
[1767108274048,0.0113206,88430.0,88405.0,0.0962]
[1767108274247,0.00016958,88426.0,88407.0,0.0113235]
[1767108275247,0.00016958,88426.0,88409.0,0.0113232]
[1767108275453,0.00016958,88426.0,88404.0,0.05708]
[1767108275654,0.00016958,88426.0,88414.0,0.0113225]
[1767108275857,0.05708,88434.0,88405.0,0.11310106]
[1767108276153,0.05708,88434.0,88394.0,0.10414904]
[1767108276353,0.05708,88434.0,88397.0,0.0113247]
[1767108276544,0.05708,88434.0,88401.0,0.0113242]
[1767108277054,0.0113214,88424.0,88409.0,0.00016958]
[1767108277249,0.0962,88424.0,88409.0,0.00016958]
[1767108278160,0.0113215,88423.0,88409.0,0.00016958]
[1767108278657,0.0113217,88421.0,88396.0,0.0962]
[1767108278853,0.0962,88424.0,88401.0,0.0113242]
[1767108279158,0.00016958,88426.0,88396.0,0.0962]
[1767108279348,0.00016958,88426.0,88411.0,0.0113229]
[1767108279658,0.05708,88433.0,88418.0,0.0113221]
[1767108280552,0.00016958,88434.0,88417.0,0.00016958]
[1767108280856,0.05708,88438.0,88417.0,0.00016958]
[1767108281052,0.05708,88438.0,88420.0,0.0113218]
[1767108281757,0.00016958,88438.0,88420.0,0.0113218]
[1767108282158,0.00016958,88438.0,88417.0,0.00016958]
[1767108282746,0.0113196,88437.0,88417.0,0.00016958]
[1767108283055,0.00016958,88438.0,88417.0,0.00016958]
[1767108283252,0.0113203,88433.0,88417.0,0.00016958]
[1767108284754,0.0113207,88429.0,88417.0,0.00016958]
[1767108285052,0.0113202,88433.0,88417.0,0.00016958]
[1767108285651,0.00016958,88438.0,88417.0,8e-08]
[1767108285855,0.0113213,88425.0,88403.0,0.0113239]
[1767108286047,0.15328,88424.0,88403.0,0.0113239]
[1767108286242,0.15328,88424.0,88406.0,0.0113236]
[1767108286946,0.15344958,88424.0,88406.0,0.01149318]
[1767108288243,0.05708,88423.0,88410.0,0.011323]
[1767108288451,0.15328,88423.0,88410.0,0.011323]
[1767108288653,0.15328,88423.0,88406.0,0.00016958]
[1767108288850,0.15328,88423.0,88406.0,0.01149318]
[1767108289248,0.15328,88423.0,88408.0,0.0113233]
[1767108289647,0.15328,88423.0,88407.0,0.0113234]
[1767108290853,0.05712,88423.0,88407.0,0.0113234]
[1767108291250,0.05712,88423.0,88406.0,0.00016958]
[1767108291453,0.05712,88423.0,88396.0,0.09624]
[1767108291653,0.05712,88423.0,88394.0,0.05708]
[1767108291654,0.05712,88423.0,88405.0,0.0113236]
[1767108292150,0.0113216,88422.0,88401.0,0.0113242]
[1767108292350,0.0113216,88422.0,88399.0,0.0113244]
[1767108292759,0.0113216,88422.0,88401.0,0.0113242]
[1767108293555,0.0113233,88409.0,88386.0,0.0113262]
[1767108293757,0.16914345,88410.0,88383.0,0.0113265]
[1767108293946,0.0113237,88406.0,88383.0,0.0113265]
[1767108294151,0.011324,88404.0,88380.0,0.1075669]
[1767108294861,0.0113244,88401.0,88380.0,0.1075669]
[1767108295160,0.00011507,88400.0,88380.0,0.1075669]
[1767108295357,0.011325,88396.0,88376.0,0.0113274]
[1767108295562,0.16914345,88390.0,88370.0,0.0113282]
[1767108295760,0.15352967,88389.0,88370.0,0.0113282]
[1767108296460,0.15352967,88389.0,88365.0,0.09624]
[1767108296659,0.15352967,88389.0,88371.0,0.011328]
[1767108296857,0.15352967,88389.0,88367.0,0.0113285]
[1767108297162,0.0113266,88383.0,88365.0,0.09624]
[1767108297355,0.0113266,88383.0,88363.0,0.011329]
[1767108297957,0.05712,88382.0,88363.0,0.011329]
[1767108298758,0.05712,88382.0,88361.0,0.15336]
[1767108298759,0.0113274,88377.0,88354.0,0.0113302]
[1767108298958,0.011328,88373.0,88353.0,0.0113304]
[1767108299160,0.05712,88372.0,88353.0,0.0113304]
[1767108300362,0.05712,88372.0,88356.0,0.01133]
[1767108300562,9.66e-05,88376.0,88355.0,0.00016967]
[1767108300759,0.09624,88392.0,88360.0,0.16914345]
[1767108301059,0.09624,88397.0,88370.0,0.16914345]
[1767108301267,0.09624,88412.0,88379.0,0.011327]
[1767108301458,0.16914345,88410.0,88380.0,0.05712]
[1767108301659,0.00016967,88404.0,88386.0,0.00016967]
[1767108301864,0.05728967,88404.0,88386.0,0.00016967]
[1767108302064,0.05728967,88404.0,88387.0,0.011326]
[1767108304756,0.05728967,88404.0,88390.0,0.0113256]
[1767108305266,0.05728967,88404.0,88386.0,0.01149577]
[1767108305770,0.05728967,88404.0,88386.0,0.00016967]
[1767108306161,0.0113245,88400.0,88377.0,0.0113273]
[1767108306469,0.0113245,88400.0,88376.0,0.15336]
[1767108306470,0.0113247,88398.0,88376.0,0.15336]
[1767108306765,0.09624,88401.0,88385.0,0.0113262]
[1767108307073,0.05712,88400.0,88385.0,0.0113262]
[1767108307866,0.05712,88400.0,88388.0,0.0113259]
[1767108308872,0.05712,88400.0,88385.0,0.0113263]
[1767108309070,0.05712,88400.0,88381.0,0.0113267]
[1767108309270,0.05712,88400.0,88384.0,0.0113264]
[1767108309972,0.05712,88400.0,88375.0,0.09624]
[1767108310171,0.0113253,88394.0,88373.0,0.09624]
[1767108310366,0.16914345,88390.0,88367.0,0.09624]
[1767108310566,0.05712,88389.0,88368.0,0.09624]
[1767108310974,0.0684458,88389.0,88368.0,0.09624]
[1767108311175,0.0684458,88389.0,88369.0,0.0113283]
[1767108311875,0.05712,88389.0,88371.0,0.011328]
[1767108313972,0.05712,88389.0,88369.0,0.0113283]
[1767108314173,0.05712,88389.0,88373.0,0.0113278]
[1767108314576,0.05712,88389.0,88368.0,0.09624]
[1767108314577,0.05712,88389.0,88380.0,0.0113269]
[1767108315082,0.05712,88389.0,88378.0,0.0113271]
[1767108315580,0.05712,88389.0,88380.0,0.0113268]
[1767108316666,0.05712,88389.0,88382.0,0.0113266]
[1767108316876,0.09640967,88392.0,88385.0,0.0113263]
[1767108317081,7e-08,88392.0,88387.0,0.011326]
[1767108317284,0.05712,88400.0,88387.0,0.011326]
[1767108317470,0.05707,88400.0,88387.0,0.011326]
[1767108317671,0.05707,88400.0,88393.0,0.0113253]
[1767108317977,0.05712,88410.0,88395.0,0.0113249]
[1767108318375,0.05712,88410.0,88394.0,0.00016967]
[1767108319487,0.00016967,88411.0,88406.0,0.0113236]
[1767108319488,7e-08,88411.0,88406.0,0.0113236]
[1767108319682,0.0113206,88430.0,88407.0,0.09628]
[1767108319984,0.0113206,88430.0,88394.0,0.00016967]
[1767108319985,0.0113209,88427.0,88402.0,0.09628]
[1767108320182,0.0113213,88425.0,88401.0,0.09624]
[1767108320480,0.16914345,88430.0,88401.0,0.09624]
[1767108320481,0.0113215,88423.0,88401.0,0.09624]
[1767108320682,0.00016967,88421.0,88403.0,0.00016967]
[1767108323483,0.0113221,88418.0,88403.0,0.00016967]
[1767108323679,0.0113226,88414.0,88401.0,0.05712]
[1767108323888,0.0113226,88414.0,88397.0,0.09624]
[1767108324078,0.16914345,88420.0,88391.0,0.0113255]
[1767108324079,0.011323,88411.0,88395.0,0.05712]
[1767108324283,0.011323,88411.0,88395.0,0.15336]
[1767108324482,0.0113231,88411.0,88393.0,0.05712]
[1767108324686,0.0113231,88411.0,88393.0,0.15352967]
[1767108324687,0.01149277,88411.0,88393.0,0.15352967]
[1767108326786,0.01149277,88411.0,88393.0,0.16485487]
[1767108326988,0.01149277,88411.0,88395.0,0.0113249]
[1767108326989,0.00016967,88411.0,88395.0,0.0113249]
[1767108327686,0.00016967,88411.0,88394.0,0.0113251]
[1767108328381,0.00016967,88411.0,88396.0,0.0113248]
[1767108328587,0.00016967,88411.0,88398.0,0.0113245]
[1767108329091,0.00016967,88411.0,88400.0,0.0113243]
[1767108329273,0.0113217,88421.0,88404.0,0.0113238]
[1767108329588,0.1075613,88425.0,88404.0,0.0113238]
[1767108330285,0.00016967,88423.0,88406.0,0.0113235]
[1767108330589,0.00016967,88423.0,88412.0,0.0113228]
[1767108330786,0.00016967,88423.0,88404.0,0.15336]
[1767108330987,7e-08,88423.0,88417.0,0.0113221]
[1767108331283,0.09624,88436.0,88404.0,0.15336]
[1767108331485,0.09624,88436.0,88405.0,0.05712]
[1767108331486,0.0113213,88424.0,88405.0,0.05712]
[1767108331684,0.0113217,88422.0,88404.0,0.09624]
[1767108331880,0.0113217,88422.0,88403.0,0.0113239]
[1767108332075,0.00016967,88421.0,88405.0,0.0113236]
[1767108332280,0.00016967,88421.0,88404.0,0.00016967]
[1767108332281,0.0113222,88417.0,88404.0,0.00016967]
[1767108332477,0.0113226,88414.0,88398.0,0.15332]
[1767108332678,0.0113226,88414.0,88398.0,0.05708]
[1767108333284,0.0113226,88414.0,88395.0,0.15332]
[1767108333492,0.16914345,88420.0,88395.0,0.15332]
[1767108333784,0.0113233,88409.0,88396.0,0.00016967]
[1767108333983,0.0113229,88412.0,88395.0,0.011325]
[1767108334988,0.00016967,88412.0,88395.0,0.01149467]
[1767108335192,0.00016967,88412.0,88401.0,0.0113242]
[1767108335990,7e-08,88412.0,88406.0,0.0113236]
[1767108336289,0.06078019,88467.0,88402.0,0.20169869]
[1767108336495,0.06078019,88467.0,88400.0,0.4345269]
[1767108336496,0.02495812,88466.0,88430.0,0.16914345]
[1767108336792,0.0113142,88480.0,88453.0,0.0113175]
[1767108336982,0.09624,88481.0,88454.0,0.09624]
[1767108337181,0.0625484,88495.0,88471.0,0.0113153]
[1767108337378,0.0625484,88495.0,88483.0,0.0113138]
[1767108337581,0.24064,88511.0,88469.0,0.05708]
[1767108337582,0.09624,88531.0,88491.0,0.0113127]
[1767108337786,0.09624,88531.0,88484.0,0.15332]
[1767108337787,0.0113095,88517.0,88492.0,0.05708]
[1767108338099,0.0113089,88522.0,88493.0,0.15332]
[1767108338287,0.16914345,88503.0,88467.0,0.0602429]
[1767108338589,0.00016947,88494.0,88476.0,0.11318552]
[1767108338790,0.00016947,88494.0,88477.0,0.15332]
[1767108338990,0.00016947,88494.0,88476.0,0.00016947]
[1767108340584,0.00016947,88494.0,88446.0,0.0113184]
[1767108340785,0.16914345,88480.0,88451.0,0.0113177]
[1767108340986,0.0962,88484.0,88452.0,0.2092135]
[1767108341180,0.0962,88484.0,88452.0,0.0962]
[1767108341394,0.0113143,88479.0,88453.0,0.1130135]
[1767108341691,0.00016957,88475.0,88457.0,0.00016957]
[1767108342291,0.16914345,88470.0,88453.0,0.05708]
[1767108342490,0.01148437,88475.0,88454.0,0.0962]
[1767108342690,0.0113153,88471.0,88454.0,0.0962]
[1767108342885,0.15328,88474.0,88454.0,0.0962]
[1767108343382,0.15328,88474.0,88453.0,0.0113175]
[1767108343383,0.15328,88474.0,88455.0,0.00016957]
[1767108344391,0.164595,88474.0,88455.0,0.00016957]
[1767108344589,0.16914345,88470.0,88455.0,0.00016957]
[1767108344894,0.0113154,88471.0,88455.0,0.00016957]
[1767108345097,0.15328,88474.0,88455.0,0.00016957]
[1767108346189,0.0113152,88473.0,88455.0,0.00016957]
[1767108346395,0.0113152,88473.0,88448.0,0.15328]
[1767108346396,0.0113156,88469.0,88448.0,0.15328]
[1767108346796,0.164595,88474.0,88448.0,0.15328]
[1767108347094,0.164595,88474.0,88449.0,0.011318]
[1767108347392,0.164595,88474.0,88448.0,0.15328]
[1767108347393,0.00016957,88475.0,88457.0,0.011317]
[1767108347596,0.0113092,88519.0,88458.0,0.15328]
[1767108347597,0.0962,88490.0,88458.0,0.15328]
[1767108347794,0.14036,88489.0,88459.0,0.15328]
[1767108348100,0.151673,88489.0,88465.0,0.0113159]
[1767108348695,0.00016957,88486.0,88468.0,0.00016957]
[1767108349201,0.01148307,88486.0,88468.0,0.00016957]
[1767108349396,0.0113139,88483.0,88468.0,0.00016957]
[1767108349603,0.0113139,88483.0,88460.0,0.0962]
[1767108350097,0.0113142,88480.0,88460.0,0.0962]
[1767108350301,0.15328,88479.0,88460.0,0.0962]
[1767108350502,0.15328,88479.0,88455.0,0.0113173]
[1767108351489,0.0113144,88478.0,88455.0,0.0113173]
[1767108351992,0.15328,88479.0,88454.0,0.15328]
[1767108352196,0.011315,88474.0,88455.0,0.0113173]
[1767108352602,0.0113146,88477.0,88424.0,0.0113212]
[1767108352896,0.15328,88479.0,88443.0,0.0113187]
[1767108352897,0.00016957,88459.0,88443.0,0.0113187]
[1767108353098,0.00016957,88459.0,88441.0,0.05704]
[1767108353301,0.00016957,88459.0,88424.0,0.01135522]
[1767108353302,0.0113173,88456.0,88438.0,0.05704]
[1767108353497,0.00016957,88459.0,88438.0,0.05704]
[1767108353990,0.00016957,88459.0,88419.0,0.0113219]
[1767108354196,0.00016957,88459.0,88420.0,0.15324]
[1767108354391,0.00016957,88459.0,88421.0,0.11306205]
[1767108354699,0.0113182,88448.0,88429.0,0.0113206]
[1767108354893,0.0113182,88448.0,88429.0,0.0683606]
[1767108355505,0.0113186,88445.0,88429.0,0.05704]
[1767108356097,0.0113182,88449.0,88429.0,0.05704]
[1767108356406,0.05704,88451.0,88435.0,0.0113199]
[1767108359398,0.05704,88451.0,88432.0,0.0113203]
[1767108360200,0.05704,88451.0,88429.0,0.05704]
[1767108360408,0.05704,88451.0,88407.0,0.0602429]
[1767108360409,0.0113192,88441.0,88406.0,0.0602429]
[1767108360598,0.00016957,88435.0,88412.0,0.15328]
[1767108360899,0.00016957,88435.0,88417.0,0.113071]
[1767108361104,7e-08,88435.0,88429.0,0.0113206]
[1767108361404,0.0113181,88449.0,88429.0,0.0113206]
[1767108361599,0.05704,88451.0,88425.0,0.0113211]
[1767108361804,0.0113186,88446.0,88425.0,0.0113211]
[1767108361999,0.0113181,88450.0,88428.0,0.0113207]
[1767108362204,0.00016957,88448.0,88430.0,0.00016957]
[1767108362405,0.0113198,88437.0,88417.0,0.0113221]
[1767108363106,0.0113201,88434.0,88416.0,0.0113222]
[1767108363299,0.15328,88438.0,88395.0,0.01145043]
[1767108363505,0.15328,88438.0,88384.0,0.0113264]
[1767108363506,0.011321,88427.0,88406.0,0.0113235]
[1767108363706,0.00016957,88425.0,88409.0,0.0113232]
[1767108364001,0.15328,88424.0,88409.0,0.0113232]
[1767108364606,0.00010376,88423.0,88409.0,0.0113232]
[1767108364810,0.00010376,88423.0,88405.0,0.0113236]
[1767108365009,0.00010376,88423.0,88407.0,0.0113234]
[1767108365206,0.00010376,88423.0,88410.0,0.0113231]
[1767108365405,0.00010376,88423.0,88405.0,0.0113236]
[1767108366308,0.00010376,88423.0,88407.0,0.0113234]
[1767108367513,0.0113216,88422.0,88403.0,0.0113239]
[1767108368304,0.00010376,88423.0,88406.0,0.0113236]
[1767108368905,0.00010376,88423.0,88398.0,0.1075246]
[1767108369215,6.09292,88513.0,88428.0,0.0113207]
[1767108369216,7e-08,88433.0,88428.0,0.0113207]
[1767108369512,0.05708,88441.0,88432.0,0.0113202]
[1767108369707,0.05708,88441.0,88417.0,0.1075221]
[1767108369909,0.05703877,88441.0,88417.0,0.1075221]
[1767108370109,0.05703877,88441.0,88428.0,0.0113207]
[1767108370416,0.0113183,88448.0,88428.0,0.0113207]
[1767108370612,0.05708,88449.0,88424.0,0.0113212]
[1767108370915,0.0113192,88441.0,88422.0,0.0113215]
[1767108371309,0.0113194,88439.0,88420.0,0.00016967]
[1767108371510,0.0113197,88437.0,88420.0,0.00016967]
[1767108372713,0.00016967,88438.0,88421.0,0.0113216]
[1767108372917,0.00016967,88438.0,88420.0,0.00016967]
[1767108373116,0.00016967,88438.0,88424.0,0.0113212]
[1767108373411,0.00016967,88438.0,88426.0,0.0113209]
[1767108373615,0.00016967,88438.0,88428.0,0.0113207]
[1767108373815,0.05708,88441.0,88428.0,0.0113207]
[1767108374320,0.05708,88441.0,88424.0,0.0113213]
[1767108374530,0.05708,88441.0,88420.0,0.00016967]
[1767108374531,0.05708,88441.0,88427.0,0.0113209]
[1767108375019,0.05708,88441.0,88420.0,0.00016967]
[1767108375214,0.0962,88442.0,88420.0,0.00016967]
[1767108375420,0.0113177,88453.0,88420.0,0.00016967]
[1767108375613,0.15328,88452.0,88420.0,0.03027581]
[1767108376117,0.15328,88452.0,88434.0,0.0113199]
[1767108376421,0.05724967,88452.0,88440.0,0.0113192]
[1767108376622,0.05724967,88452.0,88437.0,0.0113196]
[1767108377213,0.05724967,88452.0,88434.0,0.01132]
[1767108377516,0.05724967,88452.0,88436.0,0.0113197]
[1767108377819,0.05724967,88452.0,88439.0,0.0113194]
[1767108378407,0.05724967,88452.0,88436.0,0.0113197]
[1767108378919,0.05724967,88452.0,88433.0,0.1075201]
[1767108379119,0.06856747,88452.0,88435.0,0.0113198]
[1767108379717,0.05724967,88452.0,88435.0,0.0113198]
[1767108381521,0.05724967,88452.0,88438.0,0.0113195]
[1767108382416,0.00016967,88452.0,88440.0,0.0113191]
[1767108383523,0.00016967,88452.0,88437.0,0.0113196]
[1767108384014,0.00016967,88452.0,88434.0,0.01132]
[1767108384524,7e-08,88452.0,88450.0,0.0113179]
[1767108384720,0.0962,88468.0,88445.0,0.0962]
[1767108384922,0.0683956,88469.0,88453.0,0.0113176]
[1767108385117,0.0683956,88469.0,88449.0,0.011318]
[1767108385423,0.05708,88469.0,88446.0,0.0113184]
[1767108385625,0.01148556,88466.0,88449.0,0.00016956]
[1767108386921,0.01148556,88466.0,88449.0,0.01148756]
[1767108387616,0.00016956,88466.0,88449.0,0.00016956]
[1767108387812,0.00016956,88466.0,88449.0,0.01148766]
[1767108388024,0.00016956,88466.0,88453.0,0.0113175]
[1767108388327,0.00016956,88466.0,88456.0,0.0113172]
[1767108388928,6e-08,88466.0,88449.0,0.00016956]
[1767108389428,6e-08,88466.0,88454.0,0.0113174]
[1767108390322,6e-08,88466.0,88451.0,0.0113178]
[1767108390924,6e-08,88466.0,88450.0,0.0113179]
[1767108391724,0.01131606,88466.0,88449.0,0.09636956]
[1767108391927,0.0113166,88462.0,88449.0,0.00016956]
[1767108393029,0.0113168,88460.0,88449.0,0.00016956]
[1767108393934,0.01131606,88466.0,88449.0,0.00016956]
[1767108394125,0.01131606,88466.0,88449.0,0.01148756]
[1767108394325,6e-08,88466.0,88452.0,0.0113177]
[1767108395033,6e-08,88466.0,88454.0,0.0113174]
[1767108395437,6e-08,88466.0,88456.0,0.0113172]
[1767108395935,0.0113142,88480.0,88461.0,0.0113165]
[1767108396925,0.0113142,88480.0,88462.0,0.00016956]
[1767108396926,0.00011213,88479.0,88462.0,0.00016956]
[1767108397341,0.00011213,88479.0,88463.0,0.0113163]
[1767108397835,0.00011213,88479.0,88465.0,0.011316]
[1767108398430,0.06060531,88508.0,88466.0,0.26627138]
[1767108398638,0.0962,88507.0,88471.0,0.03010614]
[1767108398842,0.0113108,88506.0,88487.0,0.0113132]
[1767108399236,0.05704,88508.0,88490.0,0.0113128]
[1767108399440,0.05704,88508.0,88479.0,0.0113142]
[1767108399741,0.0113114,88502.0,88481.0,0.0113139]
[1767108400044,0.0113117,88499.0,88481.0,0.0113139]
[1767108400242,0.0113122,88495.0,88473.0,0.03010614]
[1767108400539,0.00016956,88493.0,88475.0,0.00016956]
[1767108400738,6e-08,88493.0,88485.0,0.0113134]
[1767108400945,0.11356,88505.0,88480.0,0.05704]
[1767108401134,0.11356,88505.0,88493.0,0.0113125]
[1767108401329,0.11356,88505.0,88489.0,0.0113129]
[1767108402436,0.11356,88505.0,88486.0,0.0113134]
[1767108402736,0.0113114,88502.0,88482.0,0.1074738]
[1767108403143,0.124871,88505.0,88485.0,0.0113134]
[1767108403539,0.0113113,88503.0,88485.0,0.0113134]
[1767108404442,0.11356,88505.0,88482.0,0.09616]
[1767108404643,0.0113119,88498.0,88482.0,0.09616]
[1767108405044,0.0113119,88498.0,88481.0,0.011314]
[1767108405243,0.11356,88505.0,88476.0,0.09616]
[1767108405545,0.06221775,88523.0,88488.0,0.0113131]
[1767108405546,0.1532,88504.0,88488.0,0.0113131]
[1767108406249,0.1532,88504.0,88493.0,0.0113124]
[1767108406446,0.1532,88504.0,88488.0,0.0113131]
[1767108406642,0.09616,88514.0,88487.0,0.00016956]
[1767108406855,0.05704,88513.0,88498.0,0.0113118]
[1767108407043,0.05704,88513.0,88495.0,0.0113122]
[1767108407744,0.05704,88513.0,88489.0,0.09616]
[1767108408248,0.09616,88514.0,88489.0,0.09616]
[1767108408249,0.05704,88514.0,88489.0,0.09616]
[1767108408548,0.09616,88515.0,88491.0,0.0113127]
[1767108408747,0.09616,88515.0,88489.0,0.09616]
[1767108409538,0.09616,88515.0,88500.0,0.0113115]
[1767108409734,0.09616,88515.0,88490.0,0.0113128]
[1767108410049,0.05704,88519.0,88509.0,0.0113103]
[1767108410243,0.05704,88519.0,88505.0,0.01148025]
[1767108410440,0.05704,88519.0,88505.0,0.00016945]
[1767108410746,0.0113096,88516.0,88496.0,0.0113121]
[1767108410943,0.0683492,88519.0,88498.0,0.0113117]
[1767108411152,0.05704,88519.0,88503.0,0.0113111]
[1767108411651,0.05720907,88520.0,88503.0,0.0113111]
[1767108412051,0.05720907,88520.0,88502.0,0.00016945]
[1767108412243,0.00016907,88520.0,88502.0,0.00016945]
[1767108412443,0.00016907,88520.0,88506.0,0.0113107]
[1767108413545,0.00016907,88520.0,88504.0,0.011311]
[1767108413745,0.00016907,88520.0,88506.0,0.0113107]
[1767108414352,0.01147817,88520.0,88503.0,0.0113112]
[1767108414551,0.01147807,88520.0,88505.0,0.0113109]
[1767108414738,0.01147807,88520.0,88502.0,0.00016945]
[1767108414739,0.0113094,88518.0,88502.0,0.00016945]
[1767108415447,0.0113094,88518.0,88502.0,0.01148065]